[Event "Titled Tuesday Blitz June 07 Early 2022"]
[White "Martinez Alcantara, Jose Eduardo"]
[Black "Nesterov, Arseniy"]
[WhiteFideId "3805662"]
[BlackFideId "24198455"]
[WhiteElo "2703"]
[BlackElo "2489"]
[Result "1/2-1/2"]
[Round "04"]
[TimeControl "180+1"]
[Date "2022.06.07"]
[WhiteClock "0:00:05"]
[BlackClock "0:00:07"]

1. e4 {[%clk 0:03:00]}  e5 {[%clk 0:02:59]} 2. Nf3 {[%clk 0:03:01]}  Nc6 {[%clk 0:03:00]} 3. Bb5 {[%clk 0:03:02]}  a6 {[%clk 0:02:58]} 4. Ba4 {[%clk 0:03:03]}  b5 {[%clk 0:02:59]} 5. Bb3 {[%clk 0:03:03]}  Na5 {[%clk 0:02:59]} 6. Nxe5 {[%clk 0:02:59]}  Nxb3 {[%clk 0:02:59]} 7. axb3 {[%clk 0:02:58]}  Qg5 {[%clk 0:02:59]} 8. Nf3 {[%clk 0:02:58]}  Qxg2 {[%clk 0:02:59]} 9. Rg1 {[%clk 0:02:58]}  Qh3 {[%clk 0:03:00]} 10. c4 {[%clk 0:02:52]}  Bb7 {[%clk 0:02:50]} 11. Nc3 {[%clk 0:02:51]}  b4 {[%clk 0:02:46]} 12. Nd5 {[%clk 0:02:49]}  O-O-O {[%clk 0:02:37]} 13. d3 {[%clk 0:02:47]}  Qe6 {[%clk 0:02:13]} 14. Bf4 {[%clk 0:02:34]}  Bd6 {[%clk 0:01:53]} 15. Nd4 {[%clk 0:02:25]}  Qh3 {[%clk 0:01:51]} 16. Bxd6 {[%clk 0:02:23]}  cxd6 {[%clk 0:01:51]} 17. Nxb4 {[%clk 0:02:06]}  Qxh2 {[%clk 0:01:49]} 18. Qg4 {[%clk 0:02:06]}  Qe5 {[%clk 0:01:38]} 19. Nbc2 {[%clk 0:02:06]}  Nf6 {[%clk 0:01:34]} 20. Qf5 {[%clk 0:01:54]}  g6 {[%clk 0:01:30]} 21. Qxe5 {[%clk 0:01:54]}  dxe5 {[%clk 0:01:30]} 22. Nf3 {[%clk 0:01:54]}  d6 {[%clk 0:01:30]} 23. Nb4 {[%clk 0:01:46]}  Nh5 {[%clk 0:01:16]} 24. Kd2 {[%clk 0:01:38]}  f5 {[%clk 0:01:13]} 25. Ng5 {[%clk 0:01:35]}  Rdf8 {[%clk 0:01:10]} 26. c5 {[%clk 0:00:43]}  fxe4 {[%clk 0:01:02]} 27. c6 {[%clk 0:00:33]}  Rxf2+ {[%clk 0:01:01]} 28. Kc3 {[%clk 0:00:28]}  Bxc6 {[%clk 0:00:54]} 29. Nxc6 {[%clk 0:00:29]}  Kd7 {[%clk 0:00:50]} 30. Nxe4 {[%clk 0:00:28]}  Rh2 {[%clk 0:00:43]} 31. Na5 {[%clk 0:00:08]}  Nf4 {[%clk 0:00:42]} 32. b4 {[%clk 0:00:05]}  Rc8+ {[%clk 0:00:26]} 33. Kb3 {[%clk 0:00:06]}  Nxd3 {[%clk 0:00:26]} 34. Nc4 {[%clk 0:00:06]}  Rb8 {[%clk 0:00:23]} 35. Kc3 {[%clk 0:00:06]}  Nxb4 {[%clk 0:00:17]} 36. Nexd6 {[%clk 0:00:07]}  Nd5+ {[%clk 0:00:17]} 37. Kd3 {[%clk 0:00:08]}  Rb3+ {[%clk 0:00:14]} 38. Ke4 {[%clk 0:00:07]}  Ke6 {[%clk 0:00:11]} 39. Nxe5 {[%clk 0:00:02]}  Rh4+ {[%clk 0:00:03]} 40. Ng4 {[%clk 0:00:03]}  Nf6+ {[%clk 0:00:03]} 41. Kd4 {[%clk 0:00:02]}  Rxg4+ {[%clk 0:00:02]} 42. Rxg4 {[%clk 0:00:02]}  Nxg4 {[%clk 0:00:02]} 43. Rxa6 {[%clk 0:00:03]}  Ke7 {[%clk 0:00:01]} 44. Nc4 {[%clk 0:00:03]}  Nf6 {[%clk 0:00:01]} 45. Ra7+ {[%clk 0:00:03]}  Ke6 {[%clk 0:00:01]} 46. Ra6+ {[%clk 0:00:03]}  Kf5 {[%clk 0:00:02]} 47. Nd6+ {[%clk 0:00:02]}  Kg5 {[%clk 0:00:03]} 48. Nf7+ {[%clk 0:00:03]}  Kf5 {[%clk 0:00:03]} 49. Nh6+ {[%clk 0:00:03]}  Kg5 {[%clk 0:00:04]} 50. Nf7+ {[%clk 0:00:04]}  Kf5 {[%clk 0:00:04]} 51. Nh6+ {[%clk 0:00:03]}  Kf4 {[%clk 0:00:04]} 52. Rxf6+ {[%clk 0:00:02]}  Kg5 {[%clk 0:00:05]} 53. Ng8 {[%clk 0:00:02]}  Rb8 {[%clk 0:00:05]} 54. Rf7 {[%clk 0:00:02]}  Rxg8 {[%clk 0:00:05]} 55. Rxh7 {[%clk 0:00:02]}  Rb8 {[%clk 0:00:06]} 56. Rh2 {[%clk 0:00:02]}  Kf4 {[%clk 0:00:06]} 57. Rf2+ {[%clk 0:00:02]}  Kg3 {[%clk 0:00:07]} 58. Rf1 {[%clk 0:00:02]}  g5 {[%clk 0:00:07]} 59. Rg1+ {[%clk 0:00:03]}  Kf4 {[%clk 0:00:08]} 60. Rb1 {[%clk 0:00:02]}  g4 {[%clk 0:00:08]} 61. b4 {[%clk 0:00:02]}  g3 {[%clk 0:00:08]} 62. Kc5 {[%clk 0:00:03]}  g2 {[%clk 0:00:08]} 63. b5 {[%clk 0:00:03]}  Ke3 {[%clk 0:00:07]} 64. b6 {[%clk 0:00:03]}  Kf2 {[%clk 0:00:07]} 65. Kc6 {[%clk 0:00:04]}  g1=Q {[%clk 0:00:05]} 66. Rxg1 {[%clk 0:00:04]}  Kxg1 {[%clk 0:00:06]} 67. Kc7 {[%clk 0:00:04]}  Rxb6 {[%clk 0:00:07]} 68. Kxb6 {[%clk 0:00:05]} 1/2-1/2


[Site "https://www.chess.com"]

[Event "Titled Tuesday Blitz June 07 Early 2022"]
[White "Melikyan, Gnel"]
[Black "Livaic, Leon"]
[WhiteFideId "54109990"]
[BlackFideId "14531534"]
[WhiteElo "1772"]
[BlackElo "2540"]
[Result "1-0"]
[Round "04"]
[TimeControl "180+1"]
[Date "2022.06.07"]
[WhiteClock "0:00:10"]
[BlackClock "0:00:02"]

1. e4 {[%clk 0:02:46]}  c6 {[%clk 0:02:58]} 2. d4 {[%clk 0:02:46]}  d5 {[%clk 0:02:58]} 3. Nc3 {[%clk 0:02:46]}  dxe4 {[%clk 0:02:58]} 4. Nxe4 {[%clk 0:02:47]}  Nf6 {[%clk 0:02:58]} 5. Nxf6+ {[%clk 0:02:41]}  exf6 {[%clk 0:02:59]} 6. Bc4 {[%clk 0:02:40]}  Qe7+ {[%clk 0:02:58]} 7. Qe2 {[%clk 0:02:40]}  Be6 {[%clk 0:02:58]} 8. Bb3 {[%clk 0:02:37]}  a5 {[%clk 0:02:56]} 9. Bf4 {[%clk 0:02:33]}  a4 {[%clk 0:02:55]} 10. Bxe6 {[%clk 0:02:32]}  Qxe6 {[%clk 0:02:55]} 11. O-O-O {[%clk 0:02:30]}  Qxe2 {[%clk 0:02:44]} 12. Nxe2 {[%clk 0:02:30]}  Nd7 {[%clk 0:02:20]} 13. d5 {[%clk 0:02:26]}  Bc5 {[%clk 0:02:15]} 14. dxc6 {[%clk 0:02:20]}  bxc6 {[%clk 0:02:16]} 15. Nd4 {[%clk 0:02:14]}  O-O {[%clk 0:02:04]} 16. Nxc6 {[%clk 0:02:11]}  Nb6 {[%clk 0:02:05]} 17. Bd6 {[%clk 0:02:05]}  Bxd6 {[%clk 0:02:00]} 18. Rxd6 {[%clk 0:02:05]}  Nc4 {[%clk 0:02:00]} 19. Rd4 {[%clk 0:02:03]}  Ne5 {[%clk 0:01:58]} 20. Nxe5 {[%clk 0:02:00]}  fxe5 {[%clk 0:01:59]} 21. Rd5 {[%clk 0:01:59]}  Rfe8 {[%clk 0:01:58]} 22. Re1 {[%clk 0:01:55]}  e4 {[%clk 0:01:57]} 23. Rd4 {[%clk 0:01:29]}  f5 {[%clk 0:01:55]} 24. Rd5 {[%clk 0:01:25]}  Rf8 {[%clk 0:01:43]} 25. f3 {[%clk 0:01:21]}  exf3 {[%clk 0:01:39]} 26. gxf3 {[%clk 0:01:21]}  Rf6 {[%clk 0:01:39]} 27. Re7 {[%clk 0:01:19]}  a3 {[%clk 0:01:23]} 28. b4 {[%clk 0:01:14]}  Rc8 {[%clk 0:01:18]} 29. b5 {[%clk 0:01:04]}  Rg6 {[%clk 0:01:18]} 30. Rde5 {[%clk 0:00:46]}  Kf8 {[%clk 0:01:00]} 31. R7e6 {[%clk 0:00:38]}  Rg1+ {[%clk 0:00:57]} 32. Kd2 {[%clk 0:00:38]}  Rg2+ {[%clk 0:00:40]} 33. Re2 {[%clk 0:00:38]}  Rg1 {[%clk 0:00:41]} 34. Rc6 {[%clk 0:00:26]}  Rd8+ {[%clk 0:00:41]} 35. Kc3 {[%clk 0:00:26]}  Rb1 {[%clk 0:00:41]} 36. Re5 {[%clk 0:00:19]}  g6 {[%clk 0:00:30]} 37. Ra6 {[%clk 0:00:15]}  Rc8+ {[%clk 0:00:30]} 38. Kd2 {[%clk 0:00:13]}  Rb2 {[%clk 0:00:24]} 39. Rxa3 {[%clk 0:00:13]}  Rcxc2+ {[%clk 0:00:24]} 40. Ke3 {[%clk 0:00:13]}  Re2+ {[%clk 0:00:20]} 41. Kd4 {[%clk 0:00:10]}  Rbd2+ {[%clk 0:00:19]} 42. Kc3 {[%clk 0:00:10]}  Rc2+ {[%clk 0:00:10]} 43. Kd3 {[%clk 0:00:10]}  Rcd2+ {[%clk 0:00:06]} 44. Kc3 {[%clk 0:00:10]}  Rxe5 {[%clk 0:00:07]} 45. Kxd2 {[%clk 0:00:11]}  Rxb5 {[%clk 0:00:08]} 46. Ra7 {[%clk 0:00:11]}  Rb2+ {[%clk 0:00:07]} 47. Ke3 {[%clk 0:00:11]}  Rxh2 {[%clk 0:00:08]} 48. Kf4 {[%clk 0:00:11]}  h5 {[%clk 0:00:04]} 49. Kg5 {[%clk 0:00:11]}  Rg2+ {[%clk 0:00:04]} 50. Kf6 {[%clk 0:00:11]}  Ke8 {[%clk 0:00:03]} 51. Re7+ {[%clk 0:00:11]}  Kd8 {[%clk 0:00:03]} 52. Rh7 {[%clk 0:00:11]}  Rg3 {[%clk 0:00:02]} 53. f4 {[%clk 0:00:11]}  Rg4 {[%clk 0:00:02]} 54. Ke5 {[%clk 0:00:11]}  Rg2 {[%clk 0:00:02]} 55. a4 {[%clk 0:00:11]}  Kc8 {[%clk 0:00:03]} 56. a5 {[%clk 0:00:12]}  Kb8 {[%clk 0:00:03]} 57. a6 {[%clk 0:00:12]}  Ra2 {[%clk 0:00:03]} 58. Rb7+ {[%clk 0:00:09]}  Ka8 {[%clk 0:00:02]} 59. Rb6 {[%clk 0:00:10]} 1-0


[Site "https://www.chess.com"]

[Event "Titled Tuesday Blitz June 07 Early 2022"]
[White "Mikhailovsky, Vladimir"]
[Black "Svane, Rasmus"]
[WhiteFideId "34105414"]
[BlackFideId "4657101"]
[WhiteElo "2270"]
[BlackElo "2674"]
[Result "0-1"]
[Round "04"]
[TimeControl "180+1"]
[Date "2022.06.07"]
[WhiteClock "0:00:01"]
[BlackClock "0:00:07"]

1. e4 {[%clk 0:03:00]}  c6 {[%clk 0:02:59]} 2. c4 {[%clk 0:02:59]}  d5 {[%clk 0:03:00]} 3. cxd5 {[%clk 0:03:00]}  cxd5 {[%clk 0:02:59]} 4. exd5 {[%clk 0:03:01]}  Nf6 {[%clk 0:02:59]} 5. Qa4+ {[%clk 0:03:01]}  Nbd7 {[%clk 0:02:59]} 6. Nc3 {[%clk 0:03:01]}  g6 {[%clk 0:03:00]} 7. Nf3 {[%clk 0:03:02]}  Bg7 {[%clk 0:03:00]} 8. Bc4 {[%clk 0:03:03]}  a6 {[%clk 0:03:00]} 9. d3 {[%clk 0:03:03]}  Rb8 {[%clk 0:02:58]} 10. Bb3 {[%clk 0:02:22]}  b5 {[%clk 0:02:49]} 11. Qh4 {[%clk 0:02:21]}  Bb7 {[%clk 0:02:49]} 12. Bh6 {[%clk 0:02:15]}  O-O {[%clk 0:02:48]} 13. O-O {[%clk 0:01:54]}  Nc5 {[%clk 0:01:37]} 14. Ng5 {[%clk 0:01:34]}  Qd7 {[%clk 0:01:04]} 15. h3 {[%clk 0:01:20]}  Nxd3 {[%clk 0:00:42]} 16. Nce4 {[%clk 0:01:08]}  Nxe4 {[%clk 0:00:42]} 17. Bxg7 {[%clk 0:00:55]}  Nxg5 {[%clk 0:00:42]} 18. Bxf8 {[%clk 0:00:56]}  Nxh3+ {[%clk 0:00:38]} 19. Qxh3 {[%clk 0:00:47]}  Qxh3 {[%clk 0:00:38]} 20. gxh3 {[%clk 0:00:48]}  Kxf8 {[%clk 0:00:38]} 21. Rfd1 {[%clk 0:00:40]}  Nxb2 {[%clk 0:00:37]} 22. Rd2 {[%clk 0:00:41]}  Nc4 {[%clk 0:00:23]} 23. Bxc4 {[%clk 0:00:41]}  bxc4 {[%clk 0:00:24]} 24. Rc1 {[%clk 0:00:42]}  Ke8 {[%clk 0:00:25]} 25. Rxc4 {[%clk 0:00:41]}  Rd8 {[%clk 0:00:20]} 26. Rc5 {[%clk 0:00:06]}  e6 {[%clk 0:00:20]} 27. d6 {[%clk 0:00:06]}  Bd5 {[%clk 0:00:21]} 28. Ra5 {[%clk 0:00:04]}  Rxd6 {[%clk 0:00:21]} 29. f4 {[%clk 0:00:03]}  Rb6 {[%clk 0:00:20]} 30. Kf2 {[%clk 0:00:03]}  Ke7 {[%clk 0:00:21]} 31. Ke3 {[%clk 0:00:03]}  Kf6 {[%clk 0:00:21]} 32. h4 {[%clk 0:00:02]}  h6 {[%clk 0:00:21]} 33. Rc5 {[%clk 0:00:02]}  Kf5 {[%clk 0:00:20]} 34. Rc7 {[%clk 0:00:02]}  f6 {[%clk 0:00:20]} 35. Rh7 {[%clk 0:00:03]}  h5 {[%clk 0:00:20]} 36. Rg7 {[%clk 0:00:03]}  Rb4 {[%clk 0:00:20]} 37. Rc2 {[%clk 0:00:02]}  Re4+ {[%clk 0:00:18]} 38. Kd3 {[%clk 0:00:03]}  Rxf4 {[%clk 0:00:19]} 39. Rcc7 {[%clk 0:00:03]}  Rxh4 {[%clk 0:00:19]} 40. Rcf7 {[%clk 0:00:03]}  Kg5 {[%clk 0:00:13]} 41. Rf8 {[%clk 0:00:03]}  e5 {[%clk 0:00:13]} 42. Rd7 {[%clk 0:00:02]}  Bxa2 {[%clk 0:00:13]} 43. Rd6 {[%clk 0:00:01]}  Rf4 {[%clk 0:00:13]} 44. Ke3 {[%clk 0:00:01]}  Bc4 {[%clk 0:00:12]} 45. Rc6 {[%clk 0:00:01]}  Bb5 {[%clk 0:00:12]} 46. Rc7 {[%clk 0:00:02]}  h4 {[%clk 0:00:12]} 47. Rg8 {[%clk 0:00:02]}  Ba4 {[%clk 0:00:09]} 48. Rcg7 {[%clk 0:00:03]}  Bc2 {[%clk 0:00:09]} 49. Rh7 {[%clk 0:00:03]}  Bf5 {[%clk 0:00:09]} 50. Ra8 {[%clk 0:00:03]}  Ra4 {[%clk 0:00:08]} 51. Rg8 {[%clk 0:00:02]}  a5 {[%clk 0:00:07]} 52. Kf2 {[%clk 0:00:03]}  Rf4+ {[%clk 0:00:07]} 53. Ke3 {[%clk 0:00:03]}  a4 {[%clk 0:00:08]} 54. Ra8 {[%clk 0:00:03]}  Re4+ {[%clk 0:00:08]} 55. Kf3 {[%clk 0:00:03]}  Rd4 {[%clk 0:00:08]} 56. Ke3 {[%clk 0:00:04]}  Rd3+ {[%clk 0:00:08]} 57. Ke2 {[%clk 0:00:04]}  Rg3 {[%clk 0:00:08]} 58. Kf2 {[%clk 0:00:05]}  Ra3 {[%clk 0:00:07]} 59. Ke2 {[%clk 0:00:05]}  Ra2+ {[%clk 0:00:07]} 60. Kf3 {[%clk 0:00:05]}  a3 {[%clk 0:00:08]} 61. Ke3 {[%clk 0:00:06]}  Ra1 {[%clk 0:00:08]} 62. Ra4 {[%clk 0:00:05]}  h3 {[%clk 0:00:08]} 63. Kf2 {[%clk 0:00:05]}  a2 {[%clk 0:00:08]} 64. Kg3 {[%clk 0:00:04]}  Rg1+ {[%clk 0:00:08]} 65. Kh2 {[%clk 0:00:04]}  a1=Q {[%clk 0:00:08]} 66. Rh5+ {[%clk 0:00:04]}  gxh5 {[%clk 0:00:07]} 67. Rg4+ {[%clk 0:00:04]}  Rxg4 {[%clk 0:00:07]} 68. Kxh3 {[%clk 0:00:01]} 0-1


[Site "https://www.chess.com"]

[Event "Titled Tuesday Blitz June 07 Early 2022"]
[White "Molina, Roberto Junio Brito"]
[Black "Lazavik, Denis"]
[WhiteFideId "2109450"]
[BlackFideId "13515110"]
[WhiteElo "2432"]
[BlackElo "2437"]
[Result "1/2-1/2"]
[Round "04"]
[TimeControl "180+1"]
[Date "2022.06.07"]
[WhiteClock "0:01:39"]
[BlackClock "0:01:28"]

1. d4 {[%clk 0:03:00]}  Nf6 {[%clk 0:02:59]} 2. c4 {[%clk 0:03:00]}  e6 {[%clk 0:03:00]} 3. Nf3 {[%clk 0:02:59]}  d5 {[%clk 0:03:00]} 4. Nc3 {[%clk 0:02:57]}  Be7 {[%clk 0:03:00]} 5. Bg5 {[%clk 0:02:55]}  O-O {[%clk 0:03:00]} 6. e3 {[%clk 0:02:54]}  Nbd7 {[%clk 0:03:00]} 7. Rc1 {[%clk 0:02:52]}  h6 {[%clk 0:03:00]} 8. Bh4 {[%clk 0:02:52]}  c5 {[%clk 0:03:00]} 9. cxd5 {[%clk 0:02:51]}  Nxd5 {[%clk 0:03:00]} 10. Bxe7 {[%clk 0:02:50]}  Nxe7 {[%clk 0:03:01]} 11. Bc4 {[%clk 0:02:46]}  cxd4 {[%clk 0:02:54]} 12. Qxd4 {[%clk 0:02:46]}  Nc6 {[%clk 0:02:48]} 13. Qd2 {[%clk 0:02:45]}  Nde5 {[%clk 0:02:44]} 14. Nxe5 {[%clk 0:02:43]}  Nxe5 {[%clk 0:02:42]} 15. Qxd8 {[%clk 0:02:42]}  Rxd8 {[%clk 0:02:41]} 16. Be2 {[%clk 0:02:42]}  Bd7 {[%clk 0:02:39]} 17. f4 {[%clk 0:02:42]}  Nc6 {[%clk 0:02:39]} 18. Kf2 {[%clk 0:02:40]}  Kf8 {[%clk 0:02:37]} 19. Rhd1 {[%clk 0:02:39]}  Ke7 {[%clk 0:02:36]} 20. e4 {[%clk 0:02:29]}  f6 {[%clk 0:02:30]} 21. Ke3 {[%clk 0:02:28]}  Be8 {[%clk 0:02:30]} 22. g3 {[%clk 0:02:26]}  Bf7 {[%clk 0:02:26]} 23. Bb5 {[%clk 0:02:25]}  Be8 {[%clk 0:02:17]} 24. Bxc6 {[%clk 0:02:22]}  Bxc6 {[%clk 0:02:16]} 25. Rxd8 {[%clk 0:02:17]}  Rxd8 {[%clk 0:02:15]} 26. Rd1 {[%clk 0:02:18]}  Rg8 {[%clk 0:02:12]} 27. Ne2 {[%clk 0:02:15]}  g5 {[%clk 0:02:11]} 28. fxg5 {[%clk 0:02:08]}  hxg5 {[%clk 0:02:08]} 29. Nd4 {[%clk 0:02:08]}  Bd7 {[%clk 0:02:07]} 30. Rd2 {[%clk 0:02:08]}  Rh8 {[%clk 0:01:56]} 31. Nf3 {[%clk 0:02:06]}  e5 {[%clk 0:01:50]} 32. h4 {[%clk 0:02:02]}  gxh4 {[%clk 0:01:49]} 33. Nxh4 {[%clk 0:02:02]}  Rg8 {[%clk 0:01:49]} 34. Kf3 {[%clk 0:02:01]}  Bg4+ {[%clk 0:01:42]} 35. Kf2 {[%clk 0:01:59]}  Be6 {[%clk 0:01:41]} 36. a3 {[%clk 0:01:56]}  Rc8 {[%clk 0:01:40]} 37. Kf3 {[%clk 0:01:48]}  Rc1 {[%clk 0:01:34]} 38. Nf5+ {[%clk 0:01:38]}  Bxf5 {[%clk 0:01:28]} 39. exf5 {[%clk 0:01:39]} 1/2-1/2


[Site "https://www.chess.com"]

[Event "Titled Tuesday Blitz June 07 Early 2022"]
[White "Nakamura, Hikaru"]
[Black "Shubin, Kirill"]
[WhiteFideId "2016192"]
[BlackFideId "34119962"]
[WhiteElo "2850"]
[BlackElo "2474"]
[Result "1-0"]
[Round "04"]
[TimeControl "180+1"]
[Date "2022.06.07"]
[WhiteClock "0:01:02"]
[BlackClock "0:00:04"]

1. Nf3 {[%clk 0:03:00]}  Nf6 {[%clk 0:03:00]} 2. b3 {[%clk 0:02:59]}  g6 {[%clk 0:02:56]} 3. d4 {[%clk 0:02:58]}  Bg7 {[%clk 0:02:56]} 4. Bb2 {[%clk 0:02:59]}  b6 {[%clk 0:02:55]} 5. e3 {[%clk 0:02:59]}  Bb7 {[%clk 0:02:55]} 6. c4 {[%clk 0:02:58]}  O-O {[%clk 0:02:55]} 7. Be2 {[%clk 0:02:57]}  a5 {[%clk 0:02:55]} 8. O-O {[%clk 0:02:57]}  e6 {[%clk 0:02:55]} 9. Qc2 {[%clk 0:02:55]}  Be4 {[%clk 0:02:53]} 10. Qc1 {[%clk 0:02:55]}  Bb7 {[%clk 0:02:48]} 11. Nc3 {[%clk 0:02:54]}  Ne4 {[%clk 0:02:44]} 12. Rd1 {[%clk 0:02:49]}  Nxc3 {[%clk 0:02:40]} 13. Bxc3 {[%clk 0:02:49]}  d6 {[%clk 0:02:40]} 14. d5 {[%clk 0:02:47]}  e5 {[%clk 0:02:40]} 15. a3 {[%clk 0:02:46]}  Nd7 {[%clk 0:02:35]} 16. b4 {[%clk 0:02:47]}  f5 {[%clk 0:02:26]} 17. Qb2 {[%clk 0:02:43]}  a4 {[%clk 0:02:21]} 18. Rac1 {[%clk 0:02:37]}  f4 {[%clk 0:02:09]} 19. e4 {[%clk 0:02:30]}  g5 {[%clk 0:02:08]} 20. Nd2 {[%clk 0:02:25]}  Nf6 {[%clk 0:02:01]} 21. c5 {[%clk 0:02:25]}  Ba6 {[%clk 0:01:56]} 22. Bxa6 {[%clk 0:02:23]}  Rxa6 {[%clk 0:01:57]} 23. cxd6 {[%clk 0:02:22]}  cxd6 {[%clk 0:01:56]} 24. b5 {[%clk 0:02:22]}  Ra7 {[%clk 0:01:50]} 25. Bb4 {[%clk 0:02:22]}  g4 {[%clk 0:01:45]} 26. Rc6 {[%clk 0:02:22]}  Rd7 {[%clk 0:01:45]} 27. Qc3 {[%clk 0:02:00]}  h5 {[%clk 0:01:27]} 28. Rc1 {[%clk 0:01:55]}  h4 {[%clk 0:01:03]} 29. Rc8 {[%clk 0:01:53]}  Qe7 {[%clk 0:01:04]} 30. Rxf8+ {[%clk 0:01:53]}  Bxf8 {[%clk 0:01:05]} 31. Qd3 {[%clk 0:01:53]}  Qh7 {[%clk 0:00:56]} 32. Rc8 {[%clk 0:01:43]}  Qg6 {[%clk 0:00:35]} 33. Nc4 {[%clk 0:01:24]}  Qxe4 {[%clk 0:00:24]} 34. Qxe4 {[%clk 0:01:21]}  Nxe4 {[%clk 0:00:25]} 35. f3 {[%clk 0:01:14]}  gxf3 {[%clk 0:00:20]} 36. gxf3 {[%clk 0:01:13]}  Nf6 {[%clk 0:00:07]} 37. Bxd6 {[%clk 0:01:04]}  Rf7 {[%clk 0:00:06]} 38. Nxe5 {[%clk 0:01:02]}  Rg7+ {[%clk 0:00:03]} 39. Kf1 {[%clk 0:01:02]}  Nh7 {[%clk 0:00:04]} 1-0


[Site "https://www.chess.com"]

[Event "Titled Tuesday Blitz June 07 Early 2022"]
[White "Nasir, Zehn"]
[Black "Matinian, Nikita"]
[WhiteFideId "2613239"]
[BlackFideId "24129100"]
[WhiteElo "1993"]
[BlackElo "2422"]
[Result "0-1"]
[Round "04"]
[TimeControl "180+1"]
[Date "2022.06.08"]
[WhiteClock "0:00:19"]
[BlackClock "0:00:11"]

1. d4 {[%clk 0:03:00]}  Nf6 {[%clk 0:02:58]} 2. Bf4 {[%clk 0:02:59]}  g6 {[%clk 0:02:57]} 3. Nc3 {[%clk 0:02:59]}  d5 {[%clk 0:02:57]} 4. Nf3 {[%clk 0:02:59]}  c6 {[%clk 0:02:57]} 5. e3 {[%clk 0:02:59]}  Nbd7 {[%clk 0:02:52]} 6. Qd2 {[%clk 0:02:59]}  Bg7 {[%clk 0:02:49]} 7. h4 {[%clk 0:02:59]}  h5 {[%clk 0:02:49]} 8. Ne5 {[%clk 0:02:57]}  Nxe5 {[%clk 0:02:43]} 9. Bxe5 {[%clk 0:02:54]}  O-O {[%clk 0:02:36]} 10. O-O-O {[%clk 0:02:53]}  b5 {[%clk 0:02:34]} 11. f3 {[%clk 0:02:51]}  b4 {[%clk 0:02:35]} 12. Ne2 {[%clk 0:02:46]}  a5 {[%clk 0:02:32]} 13. Nf4 {[%clk 0:02:35]}  Bf5 {[%clk 0:02:20]} 14. Bd3 {[%clk 0:02:30]}  Bxd3 {[%clk 0:02:19]} 15. Nxd3 {[%clk 0:02:25]}  Ne8 {[%clk 0:02:08]} 16. Bxg7 {[%clk 0:02:24]}  Nxg7 {[%clk 0:02:09]} 17. g4 {[%clk 0:02:24]}  Qd6 {[%clk 0:02:04]} 18. Rhg1 {[%clk 0:02:11]}  Rfb8 {[%clk 0:02:04]} 19. gxh5 {[%clk 0:02:04]}  Nxh5 {[%clk 0:02:04]} 20. f4 {[%clk 0:02:03]}  a4 {[%clk 0:02:03]} 21. f5 {[%clk 0:01:46]}  b3 {[%clk 0:02:04]} 22. a3 {[%clk 0:01:37]}  bxc2 {[%clk 0:02:03]} 23. Qxc2 {[%clk 0:01:38]}  Ng7 {[%clk 0:01:26]} 24. fxg6 {[%clk 0:01:35]}  fxg6 {[%clk 0:01:26]} 25. Ne5 {[%clk 0:01:27]}  Rxb2 {[%clk 0:00:46]} 26. Qxb2 {[%clk 0:00:45]}  Rb8 {[%clk 0:00:46]} 27. Qc3 {[%clk 0:00:43]}  Rb3 {[%clk 0:00:45]} 28. Qc5 {[%clk 0:00:42]}  Qb8 {[%clk 0:00:39]} 29. Nd3 {[%clk 0:00:31]}  Nf5 {[%clk 0:00:29]} 30. Rxg6+ {[%clk 0:00:29]}  Kh7 {[%clk 0:00:28]} 31. Rg5 {[%clk 0:00:24]}  Rb1+ {[%clk 0:00:28]} 32. Kd2 {[%clk 0:00:23]}  Rxd1+ {[%clk 0:00:18]} 33. Kxd1 {[%clk 0:00:23]}  Qb1+ {[%clk 0:00:11]} 34. Ke2 {[%clk 0:00:23]}  Qa2+ {[%clk 0:00:10]} 35. Kf3 {[%clk 0:00:20]}  Nxh4+ {[%clk 0:00:10]} 36. Kg4 {[%clk 0:00:18]}  Qg2+ {[%clk 0:00:10]} 37. Kxh4 {[%clk 0:00:18]}  Qh2+ {[%clk 0:00:10]} 38. Kg4 {[%clk 0:00:19]}  Qg2+ {[%clk 0:00:10]} 39. Kf5 {[%clk 0:00:19]}  Qe4# {[%clk 0:00:11]} 0-1


[Site "https://www.chess.com"]